Cogmind - Beta 10.2 @@@ ROGUE MODE // 2020.11.08 @ 14:15:38 // Halloween2020/ForbiddenLore Player: ApricotBot Result: Destroyed by Y-45 Defender with Heavy Assault Rifle Performance ------------- Evolutions (2) 1000 Regions Visited (4) 800 Robots Destroyed (32) 160 Value Destroyed (1007) 1007 Prototype IDs (1) 20 Alien Tech Used (0) 0 Bonus (0) 0 TOTAL SCORE: 2987 Bonus ------- None Cogmind --------- Core Integrity 0/550 Matter 300/300 Energy 100/100 System Corruption 0% Temperature Cool (9) Movement Core (200) Ox3 Location -8/Storage Parts ------- > --- POWER (1) -------- (None) > --- PROPULSION (3) --- (None) > --- UTILITY (4) ------ Medium Storage Unit > --- WEAPON (3) ------- Katana > --- INVENTORY (8) ---- Aluminum Leg Small Storage Unit Small Storage Unit Peak State ------------ > --- POWER ------------ Improved Ion Engine > --- PROPULSION ------- Aluminum Leg Aluminum Leg Titanium Leg > --- UTILITY ---------- Heat Sink Improved Heat Sink Medium Storage Unit Hardened Light Armor Plating > --- WEAPON ----------- Beam Rifle Particle Gun Pulse Rifle > --- INVENTORY -------- Light Ion Engine Aluminum Leg Aluminum Leg Aluminum Leg Small Storage Unit Small Storage Unit Particle Gun [Rating: 21] Favorites ----------- Power Light Ion Engine Engine Light Ion Engine Power Core Light Nuclear Core Propulsion Aluminum Leg Leg Aluminum Leg Utility Medium Storage Unit Device Improved Heat Sink Storage Medium Storage Unit Protection Propulsion Shielding Weapon Small Laser Energy Gun Small Laser Energy Cannon Beam Cannon Ballistic Gun Assault Rifle Slashing Weapon Katana Build | -11 -10 -9 -8 -8 ------- Run | Scr Mat Mat Mat Sto Slots Evolved 4 | . . 2 2 . Power . | . . . . . Propulsion 1 | . . . 1 . Utility 2 | . . 1 1 . Weapon 1 | . . 1 . . Parts Attached 43 | 5 5 18 6 9 Power 6 | 1 . 4 . 1 Engine 5 | 1 . 3 . 1 Core 1 | . . 1 . . Reactor . | . . . . . Propulsion 9 | 2 . 3 2 2 Treads . | . . . . . Leg 9 | 2 . 3 2 2 Wheel . | . . . . . Hover . | . . . . . Flight . | . . . . . Utility 9 | 1 3 2 2 1 Device 4 | . 1 1 1 1 Storage 2 | 1 1 . . . Processor . | . . . . . Hackware . | . . . . . Protection 3 | . 1 1 1 . Artifact . | . . . . . Weapon 19 | 1 2 9 2 5 Energy Gun 16 | 1 1 8 2 4 Energy Cannon 1 | . 1 . . . Ballistic Gun 1 | . . 1 . . Ballistic Cannon . | . . . . . Launcher . | . . . . . Special Weapon . | . . . . . Impact Weapon . | . . . . . Slashing Weapon 1 | . . . . 1 Piercing Weapon . | . . . . . Special Melee Weapon . | . . . . . Unidentified Prototypes 1 | . . 1 . . Parts Lost 26 | . . 9 1 16 Power 3 | . . 1 . 2 Propulsion 7 | . . 2 . 5 Utility 5 | . . 2 . 3 Weapon 11 | . . 4 1 6 Highest Loss Streak 14 | . . 6 1 14 Average Slot Usage (%) 90 | . 98 90 100 75 Engine 7 | . 14 5 9 5 Core 2 | . . 4 . . Leg 23 | . 28 21 27 22 Device 10 | . 3 9 18 14 Storage 10 | . 14 11 9 9 Protection 7 | . 8 7 9 6 Energy Gun 23 | . 21 25 27 17 Energy Cannon 1 | . 7 1 . . Ballistic Gun 1 | . . 2 . . Naked Turns . | . . . . . Heaviest Build 31 | 9 17 25 31 27 Greatest Support 37 | 20 20 20 37 37 Greatest Overweight (x) 3 | . . 1 1 3 Average Overweight (x) . | . . . . . Largest Inventory Capacity 8 | 6 8 8 8 8 Average Capacity 7 | 4 7 8 8 8 Most Carried 8 | 4 8 8 7 8 Average Carried 5 | 2 5 6 5 5 Final Capacity 8 | 6 8 8 8 8 Final Carried 8 | 3 8 8 7 3 Class Distribution -------------------- 35% | Scavenger-Tank 33% | Mutant 11% | Tank 10% | Gunner 9% | Scavenger-Mutant Dominant Class ---------------- Mutant | -10/Materials Scavenger-Tank | -9/Materials Scavenger-Tank | -8/Materials Tank | -8/Storage Resources | -11 -10 -9 -8 -8 ----------- Run | Scr Mat Mat Mat Sto Matter Collected 624 | 209 68 269 45 33 Remotely . | . . . . . Salvage Created 1172 | . 68 555 191 358 Parts 64 | . 7 38 8 11 Haulers Intercepted . | . . . . . Recyclers Shooed 1 | . . 1 . . Parts Field Recycled . | . . . . . Retrieved Matter . | . . . . . Parts Self-Destructed . | . . . . . Prevented . | . . . . . Kills | -11 -10 -9 -8 -8 ------- Run | Scr Mat Mat Mat Sto Combat Hostiles Destroyed 30 | . 2 16 6 6 Melee 2 | . . . . 2 Guns 23 | . . 14 6 3 Cannons 4 | . 2 2 . . Classes Destroyed 6 | . 1 3 . 2 Recycler 1 | . . . . 1 Watcher 1 | . . 1 . . Swarmer 9 | . . 6 3 . Grunt 13 | . 2 6 1 4 Duelist 1 | . . . . 1 Sentry 7 | . . 4 2 1 Best Kill Streak 4 | . 2 4 2 2 Combat Bots Only 4 | . 2 4 2 2 Max Kills in Single Turn 2 | . 1 2 1 1 Gunslinging 1 | . . 1 . . Exploded . | . . . . . Melee 1 | . . . . 1 Uniques/NPCs Destroyed . | . . . . . Combat | -11 -10 -9 -8 -8 -------- Run | Scr Mat Mat Mat Sto Damage Taken 2790 | . . 884 363 1543 Core 696 | . . 141 50 505 Absorbed by Shields . | . . . . . Core Remaining (%) 88 | 100 100 64 . . Volleys Fired 121 | . 4 73 21 23 Largest 3 | . 2 3 3 3 Hottest 193 | . 110 186 186 193 Shots Fired 240 | . 6 143 45 46 Gun 225 | . 2 132 45 46 Cannon 15 | . 4 11 . . Launcher . | . . . . . Special . | . . . . . Kinetic 31 | . . 31 . . Thermal 209 | . 6 112 45 46 Explosive . | . . . . . Electromagnetic . | . . . . . Robot Hit Streak 17 | . 2 8 9 17 Robot Miss Streak 4 | . 2 4 2 3 Penetration Max . | . . . . . Secondary Targets 4 | . . 4 . . Max Gunslinging Chain 1 | . . 1 . . Shots Hit Robots 157 | . 3 86 29 39 Core Hits 57 | . 2 32 8 15 Critical Hits . | . . . . . Critical Kills . | . . . . . Critical Parts Destroyed . | . . . . . Melee Attacks 7 | . . . . 7 Impact . | . . . . . Slashing 7 | . . . . 7 Piercing . | . . . . . Sneak Attacks . | . . . . . Combat Hostiles . | . . . . . Follow-up Attacks . | . . . . . Damage Inflicted 2205 | . 46 1074 352 733 Guns 1806 | . 12 930 352 512 Cannons 172 | . 34 138 . . Explosions . | . . . . . Melee 195 | . . . . 195 Ramming 32 | . . 6 . 26 Kinetic 290 | . . 290 . . Thermal 1688 | . 46 778 352 512 Explosive . | . . . . . Electromagnetic . | . . . . . Impact . | . . . . . Slashing 195 | . . . . 195 Piercing . | . . . . . Highest Corruption 5 | . . 5 . . Average Corruption 5 | . . 5 . . Corruption Purged . | . . . . . Effects 21 | . . 21 . . Message Errors 2 | . . 2 . . Matter Fused 3 | . . 3 . . Heat Flow Errors 4 | . . 4 . . Energy Discharges 3 | . . 3 . . Data Loss (minor) 3 | . . 3 . . Data Loss (major) 1 | . . 1 . . Targeting Errors 5 | . . 5 . . Overload Shots . | . . . . . Overflow Damage . | . . . . . Projectiles . | . . . . . Explosions . | . . . . . Melee . | . . . . . Knockbacks 1 | . . 1 . . Impact 1 | . . 1 . . Kinetic . | . . . . . Secondary . | . . . . . Self-Inflicted Damage 6 | . . . . 6 Shots . | . . . . . Rammed 8 | . . 1 . 7 Targets Rammed 16 | . . 3 . 13 Kicked 8 | . . 2 . 6 Crushed . | . . . . . Highest Temperature 472 | . 48 472 218 284 Average Temperature 103 | . 21 128 89 77 Received Heat Transfer 1038 | . . 363 99 576 Effects 9 | . . 9 . . Shutdowns 2 | . . 2 . . Interference 2 | . . 2 . . Short Circuit 1 | . . 1 . . Damage (major) 4 | . . 4 . . Siege Activations . | . . . . . Robots Corrupted . | . . . . . Combat Hostiles . | . . . . . Parts Fried . | . . . . . Impact Corruptions . | . . . . . Robots Melted 1 | . . . . 1 Combat Hostiles 1 | . . . . 1 Parts Melted 9 | . . 3 3 3 Heat Transferred 4083 | . 111 1863 888 1221 Parts Sabotaged . | . . . . . Parts Stolen . | . . . . . Parts Stripped . | . . . . . Power Chain Reactions . | . . . . . Missiles Intercepted . | . . . . . Alert | -11 -10 -9 -8 -8 ------- Run | Scr Mat Mat Mat Sto Peak Influence 269 | . 80 235 269 229 Initial 113 | . . 33 98 113 Average 128 | . 33 147 201 151 Maximum Alert Level 1 | . . 1 1 1 Low Security (%) 78 | 100 100 69 61 92 Level 1 21 | . . 30 38 7 Level 2 . | . . . . . Level 3 . | . . . . . Level 4 . | . . . . . Level 5 . | . . . . . High Security . | . . . . . Max Security . | . . . . . Squads Dispatched 4 | . 1 1 . 2 Investigation . | . . . . . Extermination . | . . . . . Reinforcement 4 | . 1 1 . 2 Assault . | . . . . . Garrison . | . . . . . Intercept . | . . . . . Construction Impeded . | . . . . . Haulers Reinforced . | . . . . . Stealth | -11 -10 -9 -8 -8 --------- Run | Scr Mat Mat Mat Sto Distress Signals 4 | . . 3 . 1 Communications Jammed . | . . . . . Distress Signals . | . . . . . Times Spotted 45 | . 4 25 6 10 Peak Tracking Total 7 | . 2 7 4 7 Tactical Retreats 1 | . . 1 . . Traps | -11 -10 -9 -8 -8 ------- Run | Scr Mat Mat Mat Sto Traps Triggered . | . . . . . Indirectly . | . . . . . Trap Hack Attempts . | . . . . . Triggered . | . . . . . Disarmed . | . . . . . Reprogrammed . | . . . . . Reused . | . . . . . Traps Extracted . | . . . . . Installed . | . . . . . Triggered . | . . . . . Machines | -11 -10 -9 -8 -8 ---------- Run | Scr Mat Mat Mat Sto Machines Disabled . | . . . . . Max in Single Turn . | . . . . . Machines Sabotaged . | . . . . . Garrisons Compromised . | . . . . . Overloaded Fab Kills . | . . . . . Fab Network Shutdowns . | . . . . . Hacking | -11 -10 -9 -8 -8 --------- Run | Scr Mat Mat Mat Sto Machines Accessed . | . . . . . Terminals . | . . . . . Fabricators . | . . . . . Repair Stations . | . . . . . Recycling Units . | . . . . . Scanalyzers . | . . . . . Garrison Access . | . . . . . Total Hacks . | . . . . . Successful . | . . . . . Failed . | . . . . . Catastrophic . | . . . . . Database Lockouts . | . . . . . Manual . | . . . . . Terminals . | . . . . . Fabricators . | . . . . . Repair Stations . | . . . . . Recycling Units . | . . . . . Scanalyzers . | . . . . . Garrison Access . | . . . . . Terminal Hacks . | . . . . . Fabricator Hacks . | . . . . . Repair Station Hacks . | . . . . . Recycling Unit Hacks . | . . . . . Scanalyzer . | . . . . . Garrison Access Hacks . | . . . . . Unauthorized Hacks . | . . . . . Terminals . | . . . . . Fabricators . | . . . . . Repair Stations . | . . . . . Recycling Units . | . . . . . Scanalyzers . | . . . . . Garrison Access . | . . . . . Data Cores Recovered . | . . . . . Used . | . . . . . Hacking Detections . | . . . . . Full Trace Events . | . . . . . Feedback Events . | . . . . . Feedback Blocked . | . . . . . Robot Schematics Acquired . | . . . . . Robots Built . | . . . . . Matter . | . . . . . Time . | . . . . . Total Robot Build Rating . | . . . . . Part Schematics Acquired . | . . . . . Parts Built . | . . . . . Matter . | . . . . . Time . | . . . . . Total Part Build Rating . | . . . . . Parts Repaired . | . . . . . Time . | . . . . . Parts Recycled . | . . . . . Recycled Matter . | . . . . . Retrieved Matter . | . . . . . Retrieved Components . | . . . . . Parts Scanalyzed . | . . . . . Part Schematics Acquired . | . . . . . Parts Damaged . | . . . . . Bothacking | -11 -10 -9 -8 -8 ------------ Run | Scr Mat Mat Mat Sto Used RIF Installer . | . . . . . Robots Hacked . | . . . . . Non-combat . | . . . . . Combat . | . . . . . Robot Hacks Applied . | . . . . . Relay Couplers Released . | . . . . . Robots Rewired . | . . . . . Allies Hacked . | . . . . . Hacks Repelled . | . . . . . Allies | -11 -10 -9 -8 -8 -------- Run | Scr Mat Mat Mat Sto Total Allies . | . . . . . Largest Group . | . . . . . Highest-Rated Group . | . . . . . Highest-Rated Ally . | . . . . . Total Orders . | . . . . . Ally Attacks . | . . . . . Total Damage . | . . . . . Kills . | . . . . . Allies Corrupted . | . . . . . Allies Melted . | . . . . . Intel | -11 -10 -9 -8 -8 ------- Run | Scr Mat Mat Mat Sto Robot Analysis Total . | . . . . . Derelict Logs Recovered . | . . . . . Drone Launches . | . . . . . Drone Recoveries . | . . . . . Exploration | -11 -10 -9 -8 -8 ------------- Run | Scr Mat Mat Mat Sto Turns Passed 1367 | 118 154 723 158 214 Spaces Moved 725 | 95 109 384 61 76 Core 28 | 12 . . . 16 Treads . | . . . . . Legs 697 | 83 109 384 61 60 Wheels . | . . . . . Hover . | . . . . . Flight . | . . . . . Fastest Speed 50 | 50 120 120 123 123 Average Speed 125 | 111 120 125 149 129 Slowest Speed 200 | 120 120 150 150 200 Overloaded Moves . | . . . . . Propulsion Burnouts . | . . . . . Robots Hopped . | . . . . . Cave-ins Triggered . | . . . . . Exploration Rate (%) 16 | 4 22 32 11 14 Regions Visited 4 Branch Regions 1 Pre-discovered Areas . | . . . . . Known Exits Taken . | . . . . . Unknown Exits Taken 4 | 1 1 1 1 . Scrap Searched . | . . . . . Spaces Dug . | . . . . . Terrain Destroyed . | . . . . . Melee . | . . . . . Projectile . | . . . . . AOE . | . . . . . Terrain Rammed . | . . . . . Walls Destroyed . | . . . . . Machines Disabled . | . . . . . Actions | -11 -10 -9 -8 -8 --------- Run | Scr Mat Mat Mat Sto Total 967 | 107 124 507 90 139 Wait 11 | . . 7 . 4 Move 721 | 94 108 383 60 76 Hop . | . . . . . Pick Up 37 | 8 7 14 3 5 Fast Attach . | . . . . . Attach 31 | 5 2 12 4 8 Detach 1 | . . 1 . . Swap 12 | . 3 6 2 1 Drop 10 | . . 8 . 2 Fire 121 | . 4 73 21 23 Melee 7 | . . . . 7 Ram . | . . . . . Kick 16 | . . 3 . 13 Crush . | . . . . . Escape Stasis . | . . . . . Rewire . | . . . . . Trap . | . . . . . Miscellaneous . | . . . . . Route ------- -11/Scrapyard -10/Materials -9/Materials -8/Materials -8/Storage History --------- Turn | Location | Event 6 | -11/Scrapyard | Discovered new exit (range 15) 119 | -11/Scrapyard | Entered Materials 216 | -10/Materials | Discovered new exit (range 16) 273 | -10/Materials | Entered another Materials area 273 | -9/Materials | Evolved 2 slots: Utility x1, Weapon x1 427 | -9/Materials | Lost 6 parts (1p1n1u3w) 990 | -9/Materials | Discovered new exit (range 4) 996 | -9/Materials | Entered another Materials area 996 | -8/Materials | Evolved 2 slots: Propulsion x1, Utility x1 1105 | -8/Materials | Discovered new exit (range 11) 1154 | -8/Materials | Entered Storage 1341 | -8/Storage | Core integrity fell below 50% 1366 | -8/Storage | Core integrity fell below 20% 1368 | -8/Storage | Destroyed by Y-45 Defender with Heavy Assault Rifle Last Messages --------------- 01296_ Hrd. Light Armor Plating destroyed. 01299_ Lgt. Ion Engine destroyed. 01301_ Pulse Rifle destroyed. 01305_ Particle Gun destroyed. 01313_ Aluminum Leg destroyed. 01314_ Particle Gun destroyed. 01317_ Heat Sink destroyed. 01332_ Aluminum Leg destroyed. 01341_ Slammed into L-31 Rogue. 01342_ Kicked L-31 Rogue out of the way. 01344_ L-31 Rogue destroyed. 01346_ Titanium Leg destroyed. 01347_ Acquired Katana. 01349_ Heat Sink destroyed. 01349_ G-47 Trooper Aluminum Leg severed. 01354_ Aluminum Leg destroyed. 01359_ G-47 Trooper Aluminum Leg severed. 01364_ G-47 Trooper destroyed. 01365_ Compression Vault explodes. 01365_ G-47 Trooper destroyed. Map ----- +----------------------------------------------------+ | ????????????????????????????????????? | | ????????????????????????????????????? | | ????????????????????????????????????? | | ????????????????????????????????????? | | ????????????????????????????????????? | | ????????????????????????????????????? | | ????????????????????????????????????? | | ????????????????????????????????????? | | ????????????????????????????????????? | | ????????????????????????????????????? | | ????????????????????????????????????? | | #?????????#######???????????????????? | | ######## #???????????????????? | | =% #???????????????????? | | #???????###?????????? | | #??????#"""#????????? | | ?????###### #??????#"R"#????????? | | ??????????##%% ##????###" "#####????? | | ???????????# #?????# #????? | | ???????????# #?????# #????? | | ???????????# #????## ##???? | | ???????????# #????# #???? | | ???????????# #????# #???? | | ???????????# #????# #???? | | ???????????# #????# = #???? | | ???????????# #????# %@% * #???? | | ???????????# ####### ##???? | | ???????????# Yg* #???? | | ???????????# % #???? | | ???????????# #???? | | ???????????#####+############+###???? | | ????????????# ######%%#?????? | | ????????????# """ """ ##!!!*%%#?????? | | ????????????# """ """ ##!!!"%%#?????? | | ???????????#T """ """ ######T##?????? | | ???????????## #????###??????? | | ????????????# #?????????????? | | ????????????# #?????????????? | | ????????????# #?????????????? | | ????????????###T#######?????????????? | | ??????????????##????????????????????? | | ????????????????????????????????????? | | ????????????????????????????????????? | | ????????????????????????????????????? | | | | | | | | | | | | | +----------------------------------------------------+ Best States ------------- Heat Dissipation 55 Energy Generation 14 Energy Capacity 265 Matter Stores 300 Matter Capacity 300 Sight Range 16 Terrain Scan Density 10 Armor Coverage 150 Propulsion Shielding 33 Evasion (%) 50 Item Schematics ----------------- None Robot Schematics ------------------ None Fabricated ------------ Nothing Alien Tech Used ----------------- None Achievements -------------- None Challenges ------------ None Game ------ Seed WeaponSpectralBoregun Manual? 0 Play Time 00:21:55 Cumulative 6.0 hours Start 2020.11.08 @ 13:37:54 End 2020.11.08 @ 14:15:38 Sessions 1 Manual Loads 0 Difficulty Rogue Special Mode Halloween2020/ForbiddenLore Game No. 14 Rogue 8 Adventurer 6 Explorer 0 Win Type - Total 0 Types 0/0/0/0/0/0/0/0/0 Lore% 3 Gallery% 17 Achievement% 12 Wizard Run 0 Options --------- ASCII 0 Keyboard 0 Movement Mouse Keybinds 0 Fullscreen 1 Font 18/TerminusBold Map View 76x50 Tactical HUD 1 Map Filters NONE Filters NONE Steam 1 RUN: 73fd0e85-4fa2-4d2e-b340-9c89153741d5